fUST/lending_fUST_20251121
["ID","MTS","AMOUNT","RATE_DAILY","PERIOD"]
[394583911,1763736641386,-500.0,0.00017136,2]
[394583913,1763736641395,-9584.3311781,0.00017137,2]
[394583915,1763736641405,-852.23975543,0.00017395,2]
[394583917,1763736641421,-310.27,0.00017395,2]
[394584038,1763736648341,-600.77913156,0.00017139,2]
[394584054,1763736650467,-38.09826976,0.00017139,2]
[394584055,1763736650477,-227.79590847,0.00017395,2]
[394584056,1763736650486,-4016.88605608,0.00017768,2]
[394584057,1763736650496,-205.838032,0.00018169,2]
[394584058,1763736650505,-258.0,0.00018767,2]
[394584059,1763736650515,-302.51602579,0.000189,2]
[394584060,1763736650524,-713.0,0.00019,2]
[394584061,1763736650533,-501.0,0.00019,2]
[394584062,1763736650543,-302.51602579,0.00019089,2]
[394584063,1763736650553,-252.691105,0.00019124,2]
[394584065,1763736650562,-500.0,0.00019178,2]
[394584067,1763736650571,-163.0,0.000192,4]
[394584068,1763736650580,-164.34555757,0.000192,4]
[394584069,1763736650589,-302.51602579,0.00019278,2]
[394584070,1763736650599,-500.0,0.00019452,2]
[394584071,1763736650609,-302.51602579,0.00019467,2]
[394584072,1763736650622,-220209.28096796,0.000195,2]
[394584073,1763736651560,-25533.28230236,0.000195,2]
[394584074,1763736651572,-1621.08340025,0.000195,2]
[394584120,1763737126039,1191.29,0.00025279,120]
[394584121,1763737135776,488.37421988,0.00025,120]
[394584129,1763737244770,5000.0,0.00014,10]
[394584130,1763737253574,5000.0,0.00014,10]
[394584168,1763737672457,9540.8,0.0002,30]
[394584203,1763737832003,-300.0,7.377e-05,2]
[394584205,1763737832012,-300.0,7.452e-05,2]
[394584207,1763737832021,-150.0,7.565e-05,2]
[394584209,1763737832031,-809.12554849,7.812e-05,2]
[394584246,1763737838083,-390.87445151,7.812e-05,2]
[394584247,1763737838094,-300.0,7.812e-05,2]
[394584249,1763737838104,-300.0,7.812e-05,2]
[394584251,1763737838118,-1200.0,7.812e-05,2]
[394584253,1763737838128,-518.39835129,7.813e-05,2]
[394584255,1763737838138,-500.0,7.813e-05,2]
[394584257,1763737838148,-500.0,7.813e-05,2]
[394584259,1763737838158,-533.44581391,7.813e-05,2]
[394584261,1763737838168,-501.11008755,7.813e-05,2]
[394584263,1763737838177,-356.17129574,7.813e-05,2]
[394584266,1763737838189,-143.82870426,7.813e-05,2]
[394584267,1763737838198,-500.0,7.813e-05,2]
[394584270,1763737838207,-500.0,7.833e-05,2]
[394584272,1763737838217,-500.0,7.833e-05,2]
[394584273,1763737838227,-500.0,7.833e-05,2]
[394584276,1763737838237,-500.0,7.833e-05,2]
[394584277,1763737838246,-500.0,7.833e-05,2]
[394584279,1763737838256,-500.0,7.833e-05,2]
[394584282,1763737838265,-500.0,7.833e-05,2]
[394584284,1763737838275,-500.0,7.833e-05,2]
[394584286,1763737838284,-500.0,7.833e-05,2]
[394584288,1763737838295,-500.0,7.833e-05,2]
[394584290,1763737838308,-500.0,7.833e-05,2]
[394584292,1763737838317,-394.78575382,7.833e-05,2]
[394584293,1763737838327,-500.0,7.833e-05,2]
[394584295,1763737838336,-500.0,7.833e-05,2]
[394584297,1763737838347,-500.0,7.84e-05,2]
[394584299,1763737838356,-239.29299148,7.84e-05,2]
[394584301,1763737838369,-418.18895891,7.84e-05,2]
[394584304,1763737838381,-216.93751187,7.84e-05,2]
[394584306,1763737838390,-616.54856462,7.858e-05,2]
[394584308,1763737838400,-500.0,7.858e-05,2]
[394584310,1763737838411,-8646.84914683,8e-05,2]
[394584312,1763737838423,-4247.00643768,8e-05,2]
[394584314,1763737838435,-776.68808795,8e-05,2]
[394584316,1763737838447,-1096.45632754,8e-05,2]
[394584318,1763737838458,-470.55923181,8.219e-05,2]
[394584320,1763737838469,-494.93561303,8.361e-05,2]
[394584510,1763737840320,-5.06438697,8.361e-05,2]
[394584512,1763737840330,-1000.0,8.405e-05,2]
[394584514,1763737840340,-227.44984036,8.507e-05,2]
[394584515,1763737840351,-1680.0,8.593e-05,2]
[394584516,1763737840361,-420.0,8.593e-05,2]
[394584517,1763737840375,-292.0,8.593e-05,2]
[394584518,1763737840388,-1680.0,8.593e-05,2]
[394584519,1763737840397,-280.36972858,8.953e-05,2]
[394584520,1763737840408,-1219.63027142,8.953e-05,2]
[394584522,1763737840418,-154.56377152,9.01e-05,2]
[394584523,1763737840427,-2351.0,9.452e-05,2]
[394584525,1763737840436,-182.0,9.452e-05,2]
[394584527,1763737840445,-2351.0,9.452e-05,2]
[394584529,1763737840455,-2000.0,9.501e-05,2]
[394584532,1763737840464,-177.0,9.565e-05,2]
[394584534,1763737840474,-213.95261191,9.78e-05,2]
[394584535,1763737840483,-151.0,9.839e-05,2]
[394584536,1763737840491,-2442.40510539,0.00010049,2]
[394584537,1763737840501,-832.0,0.00010397,2]
[394584538,1763737840510,-3292.0,0.00010397,2]
[394584539,1763737840519,-500.0,0.00010959,2]
[394584541,1763737840528,-589.19479295,0.00010959,2]
[394584543,1763737840537,-500.0,0.00010959,2]
[394584545,1763737840547,-500.0,0.00010959,2]
[394584547,1763737840557,-4594.0,0.00011437,2]
[394584549,1763737840566,-204.0,0.00011565,2]
[394584551,1763737840575,-353.13058887,0.00011683,2]
[394584553,1763737840584,-160.0,0.00011683,2]
[394584555,1763737840593,-4311.27790895,0.000129,2]
[394584557,1763737840603,-4311.27790889,0.000129,2]
[394584559,1763737840612,-231.0,0.00013565,2]
[394584561,1763737840623,-238.372968,0.00013699,2]
[394584563,1763737840633,-1112.507121,0.00013699,2]
[394584564,1763737840643,-300.0,0.00013699,2]
[394584566,1763737840653,-300.0,0.00013699,2]
[394584569,1763737840662,-300.0,0.00013699,2]
[394584571,1763737840672,-300.0,0.00013699,2]
[394584572,1763737840681,-162.4674,0.00013699,2]
[394584575,1763737840691,-300.0,0.00014384,2]
[394584576,1763737840702,-39.76807644,0.00014384,2]
[394584579,1763737840715,-244.14652356,0.00014384,2]
[394584581,1763737840725,-227.44984036,0.00014519,2]
[394584583,1763737840734,-230.229673,0.00014521,2]
[394584585,1763737840744,-154.71833529,0.00014857,2]
[394584587,1763737840754,-213.95261191,0.00014913,2]
[394584589,1763737840763,-430.507,0.00015174,2]
[394584591,1763737840773,-41353.938898,0.00015538,2]
[394584593,1763737840783,-258.0,0.00015565,2]
[394584595,1763737840792,-4311.27790889,0.00016343,2]
[394584597,1763737840802,-500.0,0.00016438,2]
[394584599,1763737840813,-286.64329036,0.00016438,2]
[394584601,1763737840822,-701.41120919,0.00016639,2]
[394584603,1763737840832,-2000.0,0.0001673,7]
[394584605,1763737840842,-745.61832678,0.00016932,2]
[394584607,1763737840852,-230.229673,0.00016976,2]
[394584609,1763737840862,-163.46915366,0.00017139,2]
[394584611,1763737840875,-1342.1129882,0.00017378,2]
[394584613,1763737840884,-2149.0,0.00017433,2]
[394584615,1763737840894,-629.0,0.00017433,2]
[394584617,1763737840906,-988.0,0.00017433,2]
[394584619,1763737840919,-285.0,0.00017565,2]
[394584621,1763737840928,-2000.0,0.00017678,7]
[394584623,1763737840938,-1262.54017654,0.00017808,2]
[394584625,1763737840951,-150.0,0.00018154,2]
[394584628,1763737840963,-2385.97864569,0.00018332,2]
[394584630,1763737840974,-2000.0,0.00018625,7]
[394584632,1763737840985,-396.1023285,0.00018741,2]
[394584634,1763737840995,-456.14297638,0.000189,3]
[394584636,1763737841004,-1824.57190553,0.000189,3]
[394584638,1763737841014,-258.76171934,0.000189,3]
[394584640,1763737841024,-1035.04687735,0.000189,3]
[394584642,1763737841034,-4105.28678744,0.000189,3]
[394584644,1763737841044,-2328.85547403,0.000189,3]
[394584646,1763737841053,-396.1023285,0.00018972,2]
[394584648,1763737841063,-2244.5158694,0.00018977,2]
[394584650,1763737841072,-36416.01278543,0.0001899,2]
[394584652,1763737841081,-3430.50775666,0.00019051,2]
[394584654,1763737841091,-1716.49051009,0.0001912,2]
[394584656,1763737841100,-531.07816397,0.00019199,4]
[394584658,1763737841110,-209.40437684,0.00019199,4]
[394584660,1763737841122,-209.40437684,0.00019199,4]
[394584662,1763737841131,-217.15233878,0.00019199,4]
[394584664,1763737841140,-225.18697532,0.00019199,4]
[394584666,1763737841155,-233.51889341,0.00019199,4]
[394584668,1763737841164,-250.0,0.00019199,4]
[394584670,1763737841174,-215.6292425,0.00019199,4]
[394584672,1763737841183,-250.0,0.00019199,4]
[394584674,1763737841193,-250.0,0.00019199,4]
[394584676,1763737841203,-250.0,0.00019199,4]
[394584678,1763737841213,-250.0,0.00019199,4]
[394584680,1763737841222,-250.0,0.00019199,4]
[394584682,1763737841231,-250.0,0.00019199,4]
[394584684,1763737841241,-250.0,0.00019199,4]
[394584686,1763737841251,-250.0,0.00019199,4]
[394584688,1763737841260,-250.0,0.00019199,4]
[394584690,1763737841270,-250.0,0.00019199,4]
[394584692,1763737841280,-2399.8777818,0.00019229,2]
[394584694,1763737841289,-41748.6000141,0.00019229,2]
[394584696,1763737841301,-3248.5855748,0.00019229,2]
[394584698,1763737841317,-500.5006746,0.00019273,2]
[394584700,1763737841327,-500.0,0.00019273,2]
[394584702,1763737841337,-625.01174887,0.00019273,2]
[394584704,1763737841348,-500.0,0.00019273,2]
[394584706,1763737841359,-500.0,0.00019273,2]
[394584708,1763737841371,-503.98742164,0.00019273,2]
[394584710,1763737841381,-500.0,0.00019273,2]
[394584712,1763737841391,-162.90580712,0.00019273,2]
[394584714,1763737841401,-500.0,0.00019273,2]
[394584716,1763737841410,-605.59177197,0.00019273,2]
[394584718,1763737841419,-500.0,0.00019273,2]
[394584720,1763737841429,-500.0,0.00019273,2]
[394584722,1763737841438,-3728.0916339,0.00019286,2]
[394584724,1763737841448,-3430.50775666,0.00019396,2]
[394584726,1763737841458,-230.229673,0.0001943,2]
[394584728,1763737841467,-1716.49051009,0.00019448,2]
[394584730,1763737841477,-108507.92001771,0.00019499,2]
[394584732,1763737841486,-500.0,0.00019499,2]
[394584734,1763737841495,-554250.90518053,0.000195,2]
[394585260,1763739032187,-300.0,6.803e-05,2]
[394585261,1763739032197,-154.48001212,6.838e-05,2]
[394585262,1763739032206,-300.0,6.872e-05,2]
[394585263,1763739032216,-25.5165891,6.941e-05,2]
[394585264,1763739032227,-274.4834109,6.941e-05,2]
[394585265,1763739032236,-400.0,7.622e-05,2]
[394585267,1763739032246,-500.0,7.623e-05,2]
[394585268,1763739032255,-484.67238166,7.623e-05,2]
[394585312,1763739038626,-5018.57223503,7.546e-05,2]
[394585314,1763739038637,-15.32761834,7.623e-05,2]
[394585316,1763739038647,-500.0,7.623e-05,2]
[394585318,1763739038660,-500.0,7.623e-05,2]
[394585320,1763739038680,-179.71014663,7.623e-05,2]
[394585626,1763739046364,-3823.53447006,7.546e-05,2]
[394585627,1763739046373,-323.53447006,7.623e-05,2]
[394585628,1763739046383,-500.0,7.623e-05,2]
[394585629,1763739046392,-500.0,7.623e-05,2]
[394585630,1763739046401,-500.0,7.623e-05,2]
[394585631,1763739046410,-500.0,7.623e-05,2]
[394585632,1763739046420,-500.0,7.623e-05,2]
[394585633,1763739046428,-500.0,7.623e-05,2]
[394585634,1763739046438,-500.0,7.623e-05,2]
[394585635,1763739046447,-300.0,7.632e-05,2]
[394585636,1763739046456,-500.0,7.633e-05,2]
[394585637,1763739046465,-158.41475759,7.648e-05,2]
[394585638,1763739046474,-500.0,7.648e-05,2]
[394585639,1763739046484,-500.0,7.648e-05,2]
[394585640,1763739046493,-500.0,7.648e-05,2]
[394585641,1763739046503,-500.0,7.648e-05,2]
[394585642,1763739046512,-500.0,7.648e-05,2]
[394585643,1763739046522,-500.0,7.648e-05,2]
[394585644,1763739046532,-500.0,7.648e-05,2]
[394585645,1763739046545,-500.0,7.648e-05,2]
[394585646,1763739046555,-500.0,7.648e-05,2]
[394585648,1763739046566,-500.0,7.648e-05,2]
[394585650,1763739046578,-500.0,7.648e-05,2]
[394585652,1763739046589,-500.0,7.648e-05,2]
[394585653,1763739046600,-500.0,7.648e-05,2]
[394585654,1763739046610,-500.0,7.648e-05,2]
[394585655,1763739046622,-500.0,7.648e-05,2]
[394585656,1763739046632,-237.07606214,7.648e-05,2]
[394585657,1763739046642,-500.0,7.648e-05,2]
[394585658,1763739046652,-500.0,7.648e-05,2]
[394585659,1763739046664,-500.0,7.648e-05,2]
[394585660,1763739046677,-229.878538,7.648e-05,2]
[394585661,1763739046687,-500.0,7.648e-05,2]
[394585662,1763739046697,-500.0,7.648e-05,2]
[394585663,1763739046708,-500.0,7.648e-05,2]
[394585664,1763739046720,-500.0,7.648e-05,2]
[394585665,1763739046731,-500.0,7.648e-05,2]
[394585666,1763739046743,-500.0,7.648e-05,2]
[394585667,1763739046756,-500.0,7.648e-05,2]
[394585668,1763739046766,-500.0,7.648e-05,2]
[394585669,1763739046777,-500.0,7.648e-05,2]
[394585670,1763739046787,-500.0,7.648e-05,2]
[394585671,1763739046804,-500.0,7.648e-05,2]
[394585672,1763739046814,-500.0,7.648e-05,2]
[394585673,1763739046824,-500.0,7.648e-05,2]
[394585674,1763739046835,-500.0,7.648e-05,2]
[394585675,1763739046845,-500.0,7.648e-05,2]
[394585676,1763739046856,-500.0,7.65e-05,2]
[394585677,1763739046867,-11903.37332963,7.652e-05,2]
[394585678,1763739046881,-213.70848605,7.652e-05,2]
[394585679,1763739046891,-500.0,7.924e-05,2]
[394585680,1763739046901,-14200.2473444,8e-05,2]
[394585681,1763739046911,-1000.0,8.171e-05,2]
[394585682,1763739046921,-500.0,8.171e-05,2]
[394585683,1763739046931,-1000.0,8.171e-05,2]
[394585684,1763739046942,-1000.0,8.171e-05,2]
[394585685,1763739046952,-292.06825785,8.171e-05,2]
[394585686,1763739046962,-1000.0,8.171e-05,2]
[394585687,1763739046972,-1000.0,8.171e-05,2]
[394585688,1763739046983,-1000.0,8.171e-05,2]
[394585689,1763739046993,-500.0,8.198e-05,2]
[394585690,1763739047003,-435.63105479,8.219e-05,2]
[394585691,1763739047013,-318.66489592,8.31e-05,2]
[394585692,1763739047023,-392.8281248,8.352e-05,2]
[394585693,1763739047033,-420.0,8.395e-05,2]
[394585694,1763739047045,-500.0,8.472e-05,2]
[394585695,1763739047055,-506.33799268,8.718e-05,2]
[394585696,1763739047065,-1000.0,8.718e-05,2]
[394585697,1763739047075,-1000.0,8.718e-05,2]
[394585698,1763739047085,-1000.0,8.718e-05,2]
[394585699,1763739047095,-500.0,8.718e-05,2]
[394585700,1763739047105,-1000.0,8.718e-05,2]
[394585701,1763739047115,-500.0,8.746e-05,2]
[394585702,1763739047125,-182.2864143,8.838e-05,2]
[394585703,1763739047135,-500.0,9.02e-05,2]
[394585704,1763739047145,-587.0,9.234e-05,2]
[394585705,1763739047155,-500.0,9.294e-05,2]
[394585706,1763739047165,-500.0,9.568e-05,2]
[394585707,1763739047175,-439.06770663,9.842e-05,2]
[394585708,1763739047186,-392.8281248,9.978e-05,2]
[394585709,1763739047197,-159.45,0.0001,2]
[394585710,1763739047206,-221.49429505,0.00010158,2]
[394585802,1763739814150,403.19971778,0.00025278,120]
[394585890,1763740008152,460.50373702,0.00014,10]
[394585891,1763740015132,-223.02823501,6.645e-05,2]
[394585892,1763740017333,5000.0,0.00014,10]
[394585893,1763740026169,5000.0,0.00014,10]
[394585894,1763740029095,-159.81477675,6.679e-05,2]
[394585895,1763740029125,-213.70848605,7.549e-05,2]
[394585896,1763740029152,-686.0,7.622e-05,2]
[394585897,1763740029175,-300.0,7.622e-05,2]
[394585898,1763740029197,-500.0,7.623e-05,2]
[394585899,1763740029217,-500.0,7.623e-05,2]
[394585900,1763740029237,-504.3135522,7.623e-05,2]
[394585901,1763740029258,-500.0,7.623e-05,2]
[394585902,1763740029278,-500.0,7.623e-05,2]
[394585903,1763740029298,-500.0,7.623e-05,2]
[394585904,1763740029319,-500.0,7.623e-05,2]
[394585905,1763740029338,-500.0,7.623e-05,2]
[394585906,1763740029358,-292.06825785,7.623e-05,2]
[394585907,1763740029378,-500.0,7.623e-05,2]
[394585908,1763740029401,-500.0,7.623e-05,2]
[394585909,1763740029420,-631.73360846,7.623e-05,2]
[394585910,1763740029440,-500.0,7.64e-05,2]
[394585911,1763740029460,-500.0,7.64e-05,2]
[394585912,1763740029481,-500.0,7.64e-05,2]
[394585913,1763740029501,-500.0,7.64e-05,2]
[394585914,1763740029521,-500.0,7.64e-05,2]
[394585915,1763740029541,-418.28481335,7.64e-05,2]
[394585916,1763740029563,-500.0,7.64e-05,2]
[394585917,1763740029591,-500.0,7.64e-05,2]
[394585918,1763740029612,-300.0,7.64e-05,2]
[394585919,1763740029635,-500.0,7.64e-05,2]
[394585920,1763740029664,-357.78331053,7.64e-05,2]
[394585921,1763740029687,-500.0,7.64e-05,2]
[394585922,1763740029715,-500.0,7.64e-05,2]
[394585923,1763740029745,-500.0,7.64e-05,2]
[394585924,1763740029774,-500.0,7.64e-05,2]
[394585925,1763740029802,-500.0,7.64e-05,2]
[394585926,1763740029828,-500.0,7.64e-05,2]
[394585927,1763740029849,-304.11956246,7.64e-05,2]
[394585928,1763740029870,-500.0,7.64e-05,2]
[394585929,1763740029890,-500.0,7.64e-05,2]
[394585930,1763740029913,-586.40777715,7.64e-05,2]
[394585931,1763740029933,-500.0,7.64e-05,2]
[394585932,1763740029953,-500.0,7.64e-05,2]
[394585933,1763740029974,-500.0,7.64e-05,2]
[394585934,1763740029998,-500.0,7.64e-05,2]
[394585935,1763740030024,-500.0,7.64e-05,2]
[394585936,1763740030050,-500.0,7.64e-05,2]
[394585937,1763740030073,-500.0,7.64e-05,2]
[394585938,1763740030095,-500.0,7.64e-05,2]
[394585939,1763740030123,-537.47650237,7.64e-05,2]
[394585940,1763740030155,-322.9878538,7.64e-05,2]
[394585941,1763740030184,-537.47650237,7.64e-05,2]
[394585942,1763740030206,-500.0,7.64e-05,2]
[394585943,1763740030232,-537.47650237,7.64e-05,2]
[394585944,1763740030258,-537.47650237,7.64e-05,2]
[394585945,1763740030284,-537.47650237,7.64e-05,2]
[394585946,1763740030495,-537.47650237,7.64e-05,2]
[394585947,1763740030524,-537.47650237,7.64e-05,2]
[394585948,1763740030553,-537.47650237,7.64e-05,2]
[394585949,1763740030574,-500.0,7.64e-05,2]
[394585950,1763740030604,-537.47650237,7.64e-05,2]
[394585951,1763740030632,-537.47650237,7.64e-05,2]
[394585952,1763740030663,-537.47650237,7.64e-05,2]
[394585953,1763740030693,-537.47650237,7.64e-05,2]
[394585954,1763740030723,-537.47650237,7.64e-05,2]
[394585955,1763740030752,-537.47650237,7.64e-05,2]
[394585956,1763740030783,-537.47650237,7.64e-05,2]
[394585957,1763740030819,-537.47650237,7.64e-05,2]
[394585958,1763740030853,-537.47650237,7.64e-05,2]
[394585959,1763740030882,-537.47650237,7.64e-05,2]
[394585960,1763740030911,-537.47650237,7.64e-05,2]
[394585961,1763740030941,-537.47650237,7.64e-05,2]
[394585962,1763740030970,-537.47650237,7.64e-05,2]
[394585963,1763740031000,-537.47650237,7.64e-05,2]
[394585964,1763740031030,-537.47650237,7.64e-05,2]
[394585965,1763740031061,-537.47650237,7.64e-05,2]
[394585966,1763740031090,-537.47650237,7.64e-05,2]
[394585967,1763740031119,-537.47650237,7.64e-05,2]
[394585968,1763740031152,-537.47650237,7.64e-05,2]
[394585969,1763740031180,-537.47650237,7.64e-05,2]
[394585970,1763740031209,-537.47650237,7.64e-05,2]
[394585971,1763740031238,-537.47650237,7.64e-05,2]
[394585972,1763740031260,-500.0,7.64e-05,2]
[394585973,1763740031280,-500.0,7.64e-05,2]
[394585974,1763740031301,-500.0,7.64e-05,2]
[394585975,1763740031321,-500.0,7.64e-05,2]
[394585976,1763740031351,-539.02478859,7.64e-05,2]
[394585977,1763740031380,-539.02478859,7.64e-05,2]
[394585978,1763740031409,-539.02478859,7.64e-05,2]
[394585979,1763740031436,-539.02478859,7.64e-05,2]
[394585980,1763740031465,-539.02478859,7.64e-05,2]
[394585981,1763740031493,-539.02478859,7.64e-05,2]
[394585982,1763740031522,-539.02478859,7.64e-05,2]
[394585983,1763740031550,-539.02478859,7.64e-05,2]
[394585984,1763740031570,-500.0,7.735e-05,2]
[394585985,1763740031591,-161.7375522,8.077e-05,2]
[394585986,1763740031613,-2848.4780525,8.077e-05,2]
[394585987,1763740031636,-1705.1615634,8.077e-05,2]
[394585988,1763740031660,-1096.9067936,8.158e-05,2]
[394585989,1763740031681,-1021.13693867,8.171e-05,2]
[394585990,1763740031702,-1006.33799268,8.171e-05,2]
[394585991,1763740031722,-1000.0,8.171e-05,2]
[394585992,1763740031742,-189.02880096,8.171e-05,2]
[394585993,1763740031762,-1000.0,8.171e-05,2]
[394585994,1763740031782,-1000.0,8.171e-05,2]
[394585995,1763740031802,-1000.0,8.171e-05,2]
[394585996,1763740031824,-1000.0,8.171e-05,2]
[394585997,1763740031845,-500.0,8.171e-05,2]
[394585998,1763740031867,-318.66489592,8.198e-05,2]
[394585999,1763740031887,-435.63105479,8.219e-05,2]
[394586000,1763740031912,-1000.0,8.283e-05,2]
[394586001,1763740031934,-420.0,8.384e-05,2]
[394586002,1763740031955,-500.0,8.445e-05,2]
[394586003,1763740031976,-500.0,8.47e-05,2]
[394586004,1763740031996,-500.0,8.47e-05,2]
[394586005,1763740032022,-188.58143656,8.679e-05,2]
[394586006,1763740032043,-500.0,8.718e-05,2]
[394586007,1763740032064,-500.0,8.718e-05,2]
[394586008,1763740032086,-500.0,8.718e-05,2]
[394586009,1763740032108,-500.0,8.718e-05,2]
[394586010,1763740032131,-500.0,8.719e-05,2]
[394586011,1763740032153,-1500.0,8.831e-05,2]
[394586012,1763740032174,-1096.9067936,8.902e-05,2]
[394586013,1763740032200,-2848.4780525,8.932e-05,2]
[394586014,1763740032221,-500.0,8.993e-05,2]
[394586015,1763740032243,-1705.1615634,8.995e-05,2]
[394586016,1763740032264,-1082.11436431,9.018e-05,2]
[394586017,1763740032286,-1000.0,9.018e-05,2]
[394586018,1763740032306,-1839.81,9.166e-05,2]
[394586019,1763740032328,-587.0,9.222e-05,2]
[394586020,1763740032349,-500.0,9.267e-05,2]
[394586021,1763740032369,-262.83,9.276e-05,2]
[394586022,1763740032388,-262.83,9.285e-05,2]
[394586023,1763740032413,-262.82,9.294e-05,2]
[394586024,1763740032433,-2000.0,9.379e-05,2]
[394586025,1763740032456,-500.0,9.512e-05,2]
[394586026,1763740032475,-501.99138947,9.512e-05,2]
[394586027,1763740032496,-500.0,9.541e-05,2]
[394586028,1763740032518,-968.7831424,9.566e-05,2]
[394586029,1763740032539,-1096.9067936,9.646e-05,2]
[394586030,1763740032560,-2848.4780525,9.786e-05,2]
[394586031,1763740032582,-500.0,9.815e-05,2]
[394586032,1763740032603,-1705.1615634,9.913e-05,2]
[394586033,1763740032624,-1581.38316256,9.927e-05,2]
[394586034,1763740032650,-1000.0,0.00010059,2]
[394586035,1763740032671,-439.06770663,0.00010088,2]
[394586036,1763740032693,-823.0,0.00010144,2]
[394586037,1763740032715,-1096.9067936,0.00010391,2]
[394586038,1763740032736,-429.59951479,0.00010607,2]
[394586039,1763740032760,-2848.4780525,0.00010641,2]
[394586040,1763740032787,-217.34809637,0.00010679,2]
[394586041,1763740032813,-1705.1615634,0.00010832,2]
[394586042,1763740032835,-500.0,0.00010959,2]
[394586043,1763740032858,-500.0,0.00010959,2]
[394586044,1763740032881,-365.56073588,0.00010959,2]
[394586045,1763740032907,-500.0,0.00010959,2]
[394586046,1763740032930,-186.30838372,0.00010959,2]
[394586047,1763740032952,-1096.9067936,0.00011135,2]
[394586048,1763740032976,-1152.0,0.00011159,2]
[394586049,1763740032996,-1096.9067936,0.0001188,2]
[394586050,1763740033022,-353.13058887,0.00011906,2]
[394586051,1763740033043,-1096.9067936,0.00012624,2]
[394586052,1763740033064,-246.11475619,0.00012679,2]
[394586053,1763740033083,-1096.9067936,0.00013369,2]
[394586054,1763740033104,-500.0,0.00013698,2]
[394586055,1763740033122,-500.0,0.00013698,2]
[394586056,1763740033141,-592.14750283,0.00013698,2]
[394586057,1763740033162,-523.54771039,0.00013698,2]
[394586058,1763740033182,-500.0,0.00013698,2]
[394586059,1763740033201,-500.0,0.00013698,2]
[394586060,1763740033220,-500.0,0.00013698,2]
[394586061,1763740033240,-500.0,0.00013698,2]
[394586062,1763740033259,-500.0,0.00013698,2]
[394586063,1763740033278,-500.0,0.00013698,2]
[394586064,1763740033297,-1000.0,0.00013699,2]
[394586065,1763740033316,-300.0,0.00013699,2]
[394586066,1763740033335,-244.9878,0.00013699,2]
[394586067,1763740033354,-160.0,0.000137,2]
[394586068,1763740033374,-1096.9067936,0.00014113,2]
[394586069,1763740033395,-260.0,0.00014248,2]
[394586070,1763740033415,-233.5662,0.00014384,2]
[394586071,1763740033435,-274.881416,0.00014679,2]
[394586072,1763740033454,-360.0,0.00014796,2]
[394586073,1763740033473,-1098.0037004,0.00014857,2]
[394586074,1763740033493,-288.834912,0.00014895,2]
[394586075,1763740033513,-471.012,0.00015068,2]
[394586076,1763740033531,-183.731,0.00015068,2]
[394586077,1763740033550,-205.838032,0.00015068,2]
[394586078,1763740033570,-500.0,0.00015262,2]
[394586079,1763740033589,-460.0,0.00015344,2]
[394586080,1763740033608,-200.0,0.000158,2]
[394586081,1763740033629,-202.2063555,0.00015892,2]
[394586082,1763740033652,-2000.0,0.00016051,7]
[394586083,1763740033673,-989.0,0.00016308,2]
[394586084,1763740033693,-2151.0,0.00016308,2]
[394586085,1763740033713,-630.0,0.00016308,2]
[394586086,1763740033733,-454.06,0.00016428,3]
[394586087,1763740033755,-500.0,0.00016437,2]
[394586088,1763740033778,-500.0,0.00016438,2]
[394586089,1763740033807,-500.0,0.00016438,2]
[394586090,1763740033829,-500.0,0.00016438,2]
[394586091,1763740033850,-500.0,0.00016438,2]
[394586092,1763740034027,-500.0,0.00016438,2]
[394586093,1763740034051,-500.0,0.00016438,2]
[394586094,1763740034074,-500.0,0.00016438,2]
[394586095,1763740034098,-550.0,0.00016438,2]
[394586096,1763740034120,-500.0,0.00016438,2]
[394586097,1763740034142,-500.0,0.00016438,2]
[394586098,1763740034167,-500.0,0.00016438,2]
[394586099,1763740034190,-500.0,0.00016438,2]
[394586100,1763740034216,-500.0,0.00016438,2]
[394586101,1763740034239,-500.0,0.00016438,2]
[394586102,1763740034261,-500.0,0.00016438,2]
[394586103,1763740034284,-500.0,0.00016438,2]
[394586104,1763740034306,-500.0,0.00016438,2]